[Event "Early-Titled-Tuesday-Blitz-May-07-2024"]
[Site "Chess.com"]
[Date "2024.05.07"]
[Round "5"]
[White "rachidhuilda"]
[Black "Pertinhez76"]
[Result "0-1"]
[WhiteElo "2341"]
[BlackElo "2147"]
[TimeControl "180+1"]
[EndTime "8:57:50 PDT"]
[Termination "Pertinhez76 won by resignation"]

1. d4 {[%clk 0:03:00.9]} 1... Nf6 {[%clk 0:02:57]} 2. Bg5 {[%clk 0:03:00.4]}
2... e6 {[%clk 0:02:49.6]} 3. e4 {[%clk 0:03:00]} 3... d5 {[%clk 0:02:47.1]} 4.
Nd2 {[%clk 0:02:58.9]} 4... h6 {[%clk 0:02:46.1]} 5. Bxf6 {[%clk 0:02:57.3]}
5... Qxf6 {[%clk 0:02:45.7]} 6. c3 {[%clk 0:02:57.3]} 6... Nd7 {[%clk
0:02:43.9]} 7. Ngf3 {[%clk 0:02:53.2]} 7... g6 {[%clk 0:02:44]} 8. g3 {[%clk
0:02:40.8]} 8... Bg7 {[%clk 0:02:43.5]} 9. Bg2 {[%clk 0:02:41.2]} 9... c6 {[%clk
0:02:39.7]} 10. O-O {[%clk 0:02:40.4]} 10... O-O {[%clk 0:02:39.8]} 11. Re1
{[%clk 0:02:35.3]} 11... Qd8 {[%clk 0:02:32.3]} 12. h4 {[%clk 0:02:29.6]} 12...
b6 {[%clk 0:02:23.4]} 13. exd5 {[%clk 0:02:27.8]} 13... exd5 {[%clk 0:02:20]}
14. Ne5 {[%clk 0:02:26.9]} 14... Nxe5 {[%clk 0:02:14.7]} 15. dxe5 {[%clk
0:02:26.7]} 15... Bf5 {[%clk 0:02:13.8]} 16. Nb3 {[%clk 0:02:18.5]} 16... Re8
{[%clk 0:02:11.1]} 17. Nd4 {[%clk 0:02:14.3]} 17... Bd7 {[%clk 0:02:11]} 18. f4
{[%clk 0:02:12.8]} 18... Rc8 {[%clk 0:02:07.5]} 19. a4 {[%clk 0:02:01.4]} 19...
a6 {[%clk 0:02:05.4]} 20. Qf3 {[%clk 0:01:56.2]} 20... h5 {[%clk 0:02:01.2]} 21.
Nc2 {[%clk 0:01:20.3]} 21... Bg4 {[%clk 0:01:58.5]} 22. Qf2 {[%clk 0:01:20.2]}
22... c5 {[%clk 0:01:57.9]} 23. Ne3 {[%clk 0:01:18.3]} 23... d4 {[%clk
0:01:57.4]} 24. Nxg4 {[%clk 0:01:17.7]} 24... hxg4 {[%clk 0:01:58.3]} 25. cxd4
{[%clk 0:01:16.2]} 25... cxd4 {[%clk 0:01:59.2]} 26. Red1 {[%clk 0:01:00.6]}
26... Bf8 {[%clk 0:01:59]} 27. Bb7 {[%clk 0:00:57]} 27... Rc4 {[%clk 0:01:51.3]}
28. Bxa6 {[%clk 0:00:57]} 28... Rb4 {[%clk 0:01:51.5]} 29. Bb5 {[%clk
0:00:56.2]} 29... Re6 {[%clk 0:01:50.1]} 30. Rd2 {[%clk 0:00:54.3]} 30... Bc5
{[%clk 0:01:49.8]} 31. Kg2 {[%clk 0:00:51.7]} 31... Qa8+ {[%clk 0:01:48.8]} 32.
Kh2 {[%clk 0:00:46.4]} 32... Rxb5 {[%clk 0:01:48.9]} 33. f5 {[%clk 0:00:34.3]}
33... gxf5 {[%clk 0:01:48]} 34. Qxf5 {[%clk 0:00:33.8]} 34... Rb3 {[%clk
0:01:45.2]} 35. Rf1 {[%clk 0:00:22.4]} 35... Qb7 {[%clk 0:01:27.7]} 36. Qxg4+
{[%clk 0:00:22.2]} 36... Rg6 {[%clk 0:01:27.7]} 37. Qf5 {[%clk 0:00:19.8]} 37...
Rbxg3 {[%clk 0:01:24.3]} 38. e6 {[%clk 0:00:18.3]} 38... Rg2+ {[%clk 0:01:23.5]}
0-1

[Event "Early-Titled-Tuesday-Blitz-May-07-2024"]
[Site "Chess.com"]
[Date "2024.05.07"]
[Round "5"]
[White "1800_strength"]
[Black "zajka-molotok"]
[Result "1-0"]
[WhiteElo "2798"]
[BlackElo "2535"]
[TimeControl "180+1"]
[EndTime "8:57:56 PDT"]
[Termination "1800_strength won by resignation"]

1. a4 {[%clk 0:03:00.9]} 1... g6 {[%clk 0:02:58.8]} 2. Ra3 {[%clk 0:03:01.8]}
2... Bg7 {[%clk 0:02:58.9]} 3. h4 {[%clk 0:03:00.2]} 3... d6 {[%clk 0:02:58.9]}
4. h5 {[%clk 0:03:00.3]} 4... gxh5 {[%clk 0:02:59.8]} 5. Rxh5 {[%clk 0:02:59.7]}
5... Nf6 {[%clk 0:02:59.9]} 6. Rh1 {[%clk 0:02:56.9]} 6... Nc6 {[%clk
0:03:00.2]} 7. Rg3 {[%clk 0:02:57.3]} 7... Rg8 {[%clk 0:02:54.8]} 8. Nc3 {[%clk
0:02:55.1]} 8... e5 {[%clk 0:02:54.2]} 9. e4 {[%clk 0:02:55.3]} 9... Be6 {[%clk
0:02:52.7]} 10. Nf3 {[%clk 0:02:44]} 10... Qd7 {[%clk 0:02:52]} 11. Ng5 {[%clk
0:02:37.5]} 11... O-O-O {[%clk 0:02:51.3]} 12. Nxh7 {[%clk 0:02:20.8]} 12...
Nxh7 {[%clk 0:02:41.5]} 13. Rxh7 {[%clk 0:02:21.7]} 13... Bf6 {[%clk 0:02:41.7]}
14. Rxg8 {[%clk 0:02:20.9]} 14... Rxg8 {[%clk 0:02:42.6]} 15. d3 {[%clk
0:01:47.7]} 15... Nd4 {[%clk 0:02:39.4]} 16. Be3 {[%clk 0:01:45.9]} 16... c6
{[%clk 0:02:13.5]} 17. Ne2 {[%clk 0:01:34.7]} 17... Bg4 {[%clk 0:02:05.8]} 18.
Kd2 {[%clk 0:00:52.9]} 18... Bxe2 {[%clk 0:01:54.8]} 19. Bxe2 {[%clk 0:00:53.8]}
19... Rxg2 {[%clk 0:01:54.8]} 20. Bf1 {[%clk 0:00:43.8]} 20... Rg1 {[%clk
0:01:47.3]} 21. Bxd4 {[%clk 0:00:41.4]} 21... exd4 {[%clk 0:01:45.5]} 22. Bh3
{[%clk 0:00:41.8]} 22... Bg5+ {[%clk 0:01:02.4]} 23. Ke2 {[%clk 0:00:37.1]}
23... Rg4 {[%clk 0:00:56.5]} 24. Kf1 {[%clk 0:00:25]} 24... f5 {[%clk
0:00:47.3]} 25. Rxd7 {[%clk 0:00:24.6]} 1-0

[Event "Early-Titled-Tuesday-Blitz-May-07-2024"]
[Site "Chess.com"]
[Date "2024.05.07"]
[Round "5"]
[White "aljado"]
[Black "ab-lsv"]
[Result "0-1"]
[WhiteElo "2179"]
[BlackElo "2383"]
[TimeControl "180+1"]
[EndTime "8:57:57 PDT"]
[Termination "ab-lsv won by resignation"]

1. e4 {[%clk 0:03:00.9]} 1... c6 {[%clk 0:02:59.8]} 2. d4 {[%clk 0:02:58.4]}
2... d5 {[%clk 0:03:00.7]} 3. exd5 {[%clk 0:02:58.7]} 3... cxd5 {[%clk
0:03:01.6]} 4. c4 {[%clk 0:02:58.9]} 4... Nf6 {[%clk 0:03:02]} 5. Nc3 {[%clk
0:02:58.8]} 5... Nc6 {[%clk 0:03:02.4]} 6. Bg5 {[%clk 0:02:57.1]} 6... dxc4
{[%clk 0:03:02.2]} 7. Bxf6 {[%clk 0:02:48.1]} 7... exf6 {[%clk 0:03:02.2]} 8. d5
{[%clk 0:02:44.9]} 8... Ne5 {[%clk 0:03:01.3]} 9. Nf3 {[%clk 0:02:41.2]} 9...
Bg4 {[%clk 0:02:42.7]} 10. Qa4+ {[%clk 0:02:40.5]} 10... Bd7 {[%clk 0:02:35.6]}
11. Qd1 {[%clk 0:02:36.8]} 11... Rc8 {[%clk 0:02:35.1]} 12. Be2 {[%clk
0:02:28.9]} 12... Nxf3+ {[%clk 0:02:28.5]} 13. Bxf3 {[%clk 0:02:26.2]} 13... Bd6
{[%clk 0:02:28.8]} 14. O-O {[%clk 0:02:25.6]} 14... O-O {[%clk 0:02:28.6]} 15.
Re1 {[%clk 0:02:19.4]} 15... a6 {[%clk 0:02:13]} 16. a4 {[%clk 0:02:16.5]} 16...
b5 {[%clk 0:02:10.7]} 17. axb5 {[%clk 0:02:13]} 17... axb5 {[%clk 0:02:11.6]}
18. Ra6 {[%clk 0:02:03.5]} 18... Qc7 {[%clk 0:02:07.3]} 19. g3 {[%clk
0:01:59.6]} 19... Rfe8 {[%clk 0:02:06.6]} 20. Bg2 {[%clk 0:01:46.6]} 20... Rxe1+
{[%clk 0:01:54.9]} 21. Qxe1 {[%clk 0:01:45.7]} 21... f5 {[%clk 0:01:51.3]} 22.
Qa1 {[%clk 0:01:35.2]} 22... b4 {[%clk 0:01:33.4]} 23. Ne2 {[%clk 0:01:33.3]}
23... Be5 {[%clk 0:01:28.5]} 24. f4 {[%clk 0:01:25.9]} 24... Qc5+ {[%clk
0:01:22.7]} 25. Kh1 {[%clk 0:01:23.5]} 25... Bf6 {[%clk 0:01:21.2]} 26. Ra8
{[%clk 0:01:19.5]} 26... g6 {[%clk 0:01:17]} 27. Rxc8+ {[%clk 0:01:18.4]} 27...
Bxc8 {[%clk 0:01:14.3]} 28. Qa8 {[%clk 0:01:17.6]} 28... Kg7 {[%clk 0:01:13.2]}
29. Qb8 {[%clk 0:01:10.5]} 29... c3 {[%clk 0:00:59.6]} 30. bxc3 {[%clk
0:01:08.9]} 30... bxc3 {[%clk 0:00:59.9]} 31. d6 {[%clk 0:01:08.9]} 31... c2
{[%clk 0:01:00]} 32. Nc1 {[%clk 0:01:08.3]} 32... Bd7 {[%clk 0:00:55.3]} 33. Qc7
{[%clk 0:01:05.3]} 33... Qxc7 {[%clk 0:00:52.3]} 34. dxc7 {[%clk 0:01:04.2]}
34... Bc8 {[%clk 0:00:52.5]} 0-1

[Event "Early-Titled-Tuesday-Blitz-May-07-2024"]
[Site "Chess.com"]
[Date "2024.05.07"]
[Round "5"]
[White "FairChess_on_YouTube"]
[Black "Yaacovn"]
[Result "1-0"]
[WhiteElo "3080"]
[BlackElo "2851"]
[TimeControl "180+1"]
[EndTime "8:57:59 PDT"]
[Termination "FairChess_on_YouTube won on time"]

1. d4 {[%clk 0:03:00.9]} 1... Nf6 {[%clk 0:02:54.5]} 2. c4 {[%clk 0:02:58]} 2...
e5 {[%clk 0:02:51.8]} 3. dxe5 {[%clk 0:02:56.4]} 3... Ne4 {[%clk 0:02:52.3]} 4.
Nf3 {[%clk 0:02:44.7]} 4... Nc6 {[%clk 0:02:52.2]} 5. Nbd2 {[%clk 0:02:42.3]}
5... Bb4 {[%clk 0:02:51.8]} 6. g3 {[%clk 0:02:34.9]} 6... O-O {[%clk 0:02:49.1]}
7. Bg2 {[%clk 0:02:34.5]} 7... Qe7 {[%clk 0:02:48.1]} 8. O-O {[%clk 0:02:34.3]}
8... Nxd2 {[%clk 0:02:48.7]} 9. Bxd2 {[%clk 0:02:33.9]} 9... Bxd2 {[%clk
0:02:49.4]} 10. Qxd2 {[%clk 0:02:32.2]} 10... Nxe5 {[%clk 0:02:50.3]} 11. Rac1
{[%clk 0:02:25.7]} 11... d6 {[%clk 0:02:50]} 12. Nd4 {[%clk 0:02:18.7]} 12... c6
{[%clk 0:02:47]} 13. Rfd1 {[%clk 0:02:18.3]} 13... Rd8 {[%clk 0:02:46.7]} 14. f4
{[%clk 0:02:08.5]} 14... Ng4 {[%clk 0:02:41.5]} 15. e4 {[%clk 0:02:08.4]} 15...
g6 {[%clk 0:02:34.1]} 16. Re1 {[%clk 0:01:58.8]} 16... a5 {[%clk 0:02:30.4]} 17.
b3 {[%clk 0:01:58.1]} 17... Nf6 {[%clk 0:02:20.8]} 18. Qc3 {[%clk 0:01:56.9]}
18... Nd7 {[%clk 0:02:19.1]} 19. h4 {[%clk 0:01:40.8]} 19... Nf6 {[%clk
0:02:14.7]} 20. Nf5 {[%clk 0:01:39.6]} 20... Qe6 {[%clk 0:01:58.4]} 21. Bh3
{[%clk 0:01:21.1]} 21... Kf8 {[%clk 0:01:30.8]} 22. g4 {[%clk 0:01:06.2]} 22...
Re8 {[%clk 0:00:03.6]} 23. g5 {[%clk 0:01:01.1]} 23... gxf5 {[%clk 0:00:03]} 24.
exf5 {[%clk 0:00:57.9]} 1-0

[Event "Early-Titled-Tuesday-Blitz-May-07-2024"]
[Site "Chess.com"]
[Date "2024.05.07"]
[Round "5"]
[White "Amiciterno"]
[Black "santosalberto1987"]
[Result "1-0"]
[WhiteElo "2426"]
[BlackElo "2560"]
[TimeControl "180+1"]
[EndTime "8:57:59 PDT"]
[Termination "Amiciterno won by checkmate"]

1. d4 {[%clk 0:03:00.9]} 1... Nf6 {[%clk 0:02:42.2]} 2. Bf4 {[%clk 0:03:00.3]}
2... g6 {[%clk 0:02:41]} 3. Nc3 {[%clk 0:03:00.5]} 3... Bg7 {[%clk 0:02:39.9]}
4. e4 {[%clk 0:03:00.7]} 4... c5 {[%clk 0:02:40.2]} 5. d5 {[%clk 0:02:59.9]}
5... d6 {[%clk 0:02:39.2]} 6. Nf3 {[%clk 0:02:58.5]} 6... O-O {[%clk 0:02:39.2]}
7. a4 {[%clk 0:02:58.8]} 7... a6 {[%clk 0:02:39]} 8. Be2 {[%clk 0:02:59]} 8...
Re8 {[%clk 0:02:39]} 9. O-O {[%clk 0:02:59]} 9... e6 {[%clk 0:02:39.4]} 10. dxe6
{[%clk 0:02:56.9]} 10... Rxe6 {[%clk 0:02:39.3]} 11. Bc4 {[%clk 0:02:44]} 11...
Re8 {[%clk 0:02:39.2]} 12. Ng5 {[%clk 0:02:43]} 12... Re7 {[%clk 0:02:31.9]} 13.
Qxd6 {[%clk 0:02:37.1]} 13... Rd7 {[%clk 0:02:24.9]} 14. Nxf7 {[%clk 0:02:19.4]}
14... Qe7 {[%clk 0:02:04.1]} 15. Ne5+ {[%clk 0:02:01.9]} 15... Kh8 {[%clk
0:02:02.6]} 16. Nxd7 {[%clk 0:02:02.3]} 16... Qxd7 {[%clk 0:01:58.4]} 17. Qxc5
{[%clk 0:01:54.8]} 17... Nc6 {[%clk 0:01:58]} 18. Rad1 {[%clk 0:01:52.6]} 18...
Qe8 {[%clk 0:01:57]} 19. Nd5 {[%clk 0:01:29.3]} 19... Nxe4 {[%clk 0:01:53.3]}
20. Qe3 {[%clk 0:01:29.9]} 20... Nf6 {[%clk 0:01:44]} 21. Nc7 {[%clk 0:00:56.6]}
21... Qxe3 {[%clk 0:01:42.4]} 22. Bxe3 {[%clk 0:00:57.5]} 22... Rb8 {[%clk
0:01:41.6]} 23. Rfe1 {[%clk 0:00:57.2]} 23... Bf5 {[%clk 0:01:39.5]} 24. Bd3
{[%clk 0:00:53]} 24... Bxd3 {[%clk 0:01:34.5]} 25. Rxd3 {[%clk 0:00:53.9]} 25...
Rc8 {[%clk 0:01:33.6]} 26. Ne6 {[%clk 0:00:37.9]} 26... Nb4 {[%clk 0:01:33.5]}
27. Rd2 {[%clk 0:00:20]} 27... Rxc2 {[%clk 0:01:28.6]} 28. Rd8+ {[%clk
0:00:18.2]} 28... Ng8 {[%clk 0:01:23.9]} 29. Nxg7 {[%clk 0:00:17.3]} 29... Kxg7
{[%clk 0:01:23.7]} 30. Bd4+ {[%clk 0:00:17.9]} 30... Kf7 {[%clk 0:01:18.7]} 31.
Rd7+ {[%clk 0:00:13]} 31... Ne7 {[%clk 0:01:18]} 32. Rdxe7+ {[%clk 0:00:12.6]}
32... Kf8 {[%clk 0:01:18.1]} 33. Re8+ {[%clk 0:00:12.2]} 33... Kf7 {[%clk
0:01:18.2]} 34. R1e7# {[%clk 0:00:12.8]} 1-0

[Event "Early-Titled-Tuesday-Blitz-May-07-2024"]
[Site "Chess.com"]
[Date "2024.05.07"]
[Round "5"]
[White "CarlosjPineror"]
[Black "Shield12"]
[Result "0-1"]
[WhiteElo "2717"]
[BlackElo "3004"]
[TimeControl "180+1"]
[EndTime "8:58:00 PDT"]
[Termination "Shield12 won by resignation"]

1. e4 {[%clk 0:03:00.9]} 1... c5 {[%clk 0:02:59.8]} 2. Nf3 {[%clk 0:03:00.1]}
2... e6 {[%clk 0:02:59.7]} 3. d4 {[%clk 0:02:58.8]} 3... cxd4 {[%clk 0:03:00.6]}
4. Nxd4 {[%clk 0:02:59.7]} 4... Nc6 {[%clk 0:03:01.2]} 5. Nc3 {[%clk 0:02:51.2]}
5... Qc7 {[%clk 0:03:01]} 6. Be2 {[%clk 0:02:50.7]} 6... Nf6 {[%clk 0:02:59.6]}
7. O-O {[%clk 0:02:50.4]} 7... a6 {[%clk 0:02:59.1]} 8. Be3 {[%clk 0:02:47.7]}
8... Be7 {[%clk 0:02:58.5]} 9. f4 {[%clk 0:02:40.8]} 9... d6 {[%clk 0:02:58.4]}
10. Qe1 {[%clk 0:02:31.6]} 10... O-O {[%clk 0:02:58.1]} 11. Rd1 {[%clk
0:02:31.1]} 11... Nxd4 {[%clk 0:02:55.5]} 12. Bxd4 {[%clk 0:02:31]} 12... b5
{[%clk 0:02:56.4]} 13. a3 {[%clk 0:02:17.1]} 13... Bb7 {[%clk 0:02:55.3]} 14.
Bf3 {[%clk 0:02:17.8]} 14... Rac8 {[%clk 0:02:50]} 15. Kh1 {[%clk 0:02:10.5]}
15... Nd7 {[%clk 0:02:43.6]} 16. Qf2 {[%clk 0:02:02.2]} 16... e5 {[%clk
0:02:35.9]} 17. Be3 {[%clk 0:01:29.2]} 17... exf4 {[%clk 0:02:36]} 18. Bxf4
{[%clk 0:01:30.1]} 18... Ne5 {[%clk 0:02:36.2]} 19. Bxe5 {[%clk 0:01:19.5]}
19... dxe5 {[%clk 0:02:35.3]} 20. Bg4 {[%clk 0:01:19.9]} 20... Rcd8 {[%clk
0:02:28.6]} 21. Nd5 {[%clk 0:00:49.9]} 21... Bxd5 {[%clk 0:02:25.6]} 22. exd5
{[%clk 0:00:21]} 22... Bd6 {[%clk 0:02:23.6]} 23. c3 {[%clk 0:00:09.9]} 23... g6
{[%clk 0:02:21.4]} 24. Bh3 {[%clk 0:00:05]} 24... e4 {[%clk 0:02:19.8]} 25. g4
{[%clk 0:00:04.1]} 25... Rde8 {[%clk 0:02:17.4]} 26. Qe2 {[%clk 0:00:03.4]}
26... Re5 {[%clk 0:02:16.7]} 27. Bg2 {[%clk 0:00:02.9]} 27... Qe7 {[%clk
0:02:14.1]} 28. h3 {[%clk 0:00:02.8]} 28... h5 {[%clk 0:02:12.9]} 29. Rd4 {[%clk
0:00:02.8]} 29... hxg4 {[%clk 0:02:12.2]} 30. hxg4 {[%clk 0:00:03]} 30... Kg7
{[%clk 0:02:11.1]} 31. Rxe4 {[%clk 0:00:02.8]} 31... Rh8+ {[%clk 0:02:11.3]} 32.
Kg1 {[%clk 0:00:03.1]} 32... Bc5+ {[%clk 0:02:10.1]} 33. Rf2 {[%clk 0:00:03.6]}
33... Rxe4 {[%clk 0:02:06.6]} 34. Qxe4 {[%clk 0:00:03.6]} 34... Qxe4 {[%clk
0:02:01.7]} 35. Bxe4 {[%clk 0:00:03.6]} 35... Re8 {[%clk 0:02:02.1]} 36. Bf3
{[%clk 0:00:03.2]} 36... Re1+ {[%clk 0:02:00]} 37. Kg2 {[%clk 0:00:03.2]} 37...
Bxf2 {[%clk 0:02:00.9]} 38. Kxf2 {[%clk 0:00:04.1]} 38... Rb1 {[%clk 0:02:00.7]}
39. b4 {[%clk 0:00:04.2]} 39... Kf6 {[%clk 0:02:00.1]} 40. Ke3 {[%clk
0:00:03.9]} 40... Ke5 {[%clk 0:02:00.4]} 41. Kd3 {[%clk 0:00:03.9]} 41... f5
{[%clk 0:01:55.4]} 42. gxf5 {[%clk 0:00:03.8]} 42... gxf5 {[%clk 0:01:56.3]} 43.
Kc2 {[%clk 0:00:02.6]} 43... Re1 {[%clk 0:01:54]} 44. Kd2 {[%clk 0:00:02.4]}
44... Ra1 {[%clk 0:01:53.9]} 45. Kc2 {[%clk 0:00:02.4]} 45... f4 {[%clk
0:01:53.6]} 46. Kb2 {[%clk 0:00:02.4]} 46... Rf1 {[%clk 0:01:53.5]} 47. d6
{[%clk 0:00:03.3]} 47... Rxf3 {[%clk 0:01:52.6]} 0-1

[Event "Early-Titled-Tuesday-Blitz-May-07-2024"]
[Site "Chess.com"]
[Date "2024.05.07"]
[Round "5"]
[White "Byniolus"]
[Black "Bilan_Danila"]
[Result "1-0"]
[WhiteElo "2814"]
[BlackElo "2563"]
[TimeControl "180+1"]
[EndTime "8:58:01 PDT"]
[Termination "Byniolus won by resignation"]

1. d4 {[%clk 0:03:00.9]} 1... d5 {[%clk 0:02:59.1]} 2. Nf3 {[%clk 0:03:01]} 2...
Nf6 {[%clk 0:02:59.2]} 3. Bf4 {[%clk 0:03:01.2]} 3... c5 {[%clk 0:02:59.1]} 4.
c3 {[%clk 0:03:01.7]} 4... Nc6 {[%clk 0:02:59.4]} 5. Nbd2 {[%clk 0:03:02.2]}
5... cxd4 {[%clk 0:02:58.8]} 6. cxd4 {[%clk 0:03:03.1]} 6... Qb6 {[%clk
0:02:54.8]} 7. e3 {[%clk 0:03:03.5]} 7... Bf5 {[%clk 0:02:49.2]} 8. Qb3 {[%clk
0:03:00.6]} 8... Qxb3 {[%clk 0:02:48.3]} 9. Nxb3 {[%clk 0:03:00]} 9... e6 {[%clk
0:02:43.8]} 10. Bb5 {[%clk 0:02:57.1]} 10... Bb4+ {[%clk 0:02:25.1]} 11. Ke2
{[%clk 0:02:57.1]} 11... Ke7 {[%clk 0:02:15.7]} 12. Bxc6 {[%clk 0:02:42]} 12...
bxc6 {[%clk 0:02:12.6]} 13. Rhc1 {[%clk 0:02:42.9]} 13... Rhc8 {[%clk
0:02:05.3]} 14. Ne5 {[%clk 0:02:36.8]} 14... c5 {[%clk 0:01:25.1]} 15. dxc5
{[%clk 0:01:29.5]} 15... Ne4 {[%clk 0:01:12.6]} 16. Nd3 {[%clk 0:01:26.7]} 16...
a5 {[%clk 0:01:03.4]} 17. a3 {[%clk 0:01:26]} 17... a4 {[%clk 0:00:58.7]} 18.
axb4 {[%clk 0:01:18.7]} 18... axb3 {[%clk 0:00:58.9]} 19. Rxa8 {[%clk
0:01:13.7]} 19... Rxa8 {[%clk 0:00:59]} 20. b5 {[%clk 0:01:13.7]} 20... f6
{[%clk 0:00:52.3]} 21. Bc7 {[%clk 0:00:53.3]} 21... Kd7 {[%clk 0:00:50]} 22. b6
{[%clk 0:00:52]} 22... Kc6 {[%clk 0:00:19.5]} 23. Nb4+ {[%clk 0:00:51.8]} 23...
Kb5 {[%clk 0:00:20]} 24. b7 {[%clk 0:00:51]} 24... Rg8 {[%clk 0:00:18.9]} 25.
Nd3 {[%clk 0:00:44]} 1-0

[Event "Early-Titled-Tuesday-Blitz-May-07-2024"]
[Site "Chess.com"]
[Date "2024.05.07"]
[Round "5"]
[White "WhiteKnight2612"]
[Black "GMBenjaminBok"]
[Result "1/2-1/2"]
[WhiteElo "2842"]
[BlackElo "3049"]
[TimeControl "180+1"]
[EndTime "8:58:04 PDT"]
[Termination "Game drawn by repetition"]

1. d4 {[%clk 0:03:00.9]} 1... Nf6 {[%clk 0:03:00]} 2. c4 {[%clk 0:02:59.8]} 2...
e6 {[%clk 0:03:00.5]} 3. Nf3 {[%clk 0:03:00.2]} 3... b6 {[%clk 0:03:00.6]} 4. g3
{[%clk 0:03:00.1]} 4... Ba6 {[%clk 0:03:00.9]} 5. Qc2 {[%clk 0:02:59.6]} 5... c5
{[%clk 0:03:00.6]} 6. d5 {[%clk 0:03:00.1]} 6... exd5 {[%clk 0:03:01.5]} 7. cxd5
{[%clk 0:03:00.4]} 7... Bb7 {[%clk 0:03:02.1]} 8. Bg2 {[%clk 0:02:52.7]} 8...
Nxd5 {[%clk 0:03:02.1]} 9. O-O {[%clk 0:02:46.6]} 9... Nc6 {[%clk 0:03:02.6]}
10. Qf5 {[%clk 0:02:16.7]} 10... Nde7 {[%clk 0:02:55.8]} 11. Qf4 {[%clk
0:02:13.3]} 11... d5 {[%clk 0:02:52]} 12. Nc3 {[%clk 0:02:07.5]} 12... d4 {[%clk
0:02:49]} 13. Nb5 {[%clk 0:02:07.1]} 13... Nd5 {[%clk 0:02:44.9]} 14. Qe4+
{[%clk 0:02:03.4]} 14... Nce7 {[%clk 0:02:27.5]} 15. Bf4 {[%clk 0:01:36.8]}
15... Nxf4 {[%clk 0:02:24.9]} 16. Qxb7 {[%clk 0:01:36.4]} 16... Rb8 {[%clk
0:02:17.4]} 17. Nc7+ {[%clk 0:01:27.6]} 17... Kd7 {[%clk 0:02:11.1]} 18. Ne5+
{[%clk 0:01:27.9]} 18... Kd6 {[%clk 0:02:02.1]} 19. Nxf7+ {[%clk 0:01:22]} 19...
Kd7 {[%clk 0:02:02.7]} 20. Ne5+ {[%clk 0:01:22.4]} 20... Kd6 {[%clk 0:02:02.2]}
21. Nf7+ {[%clk 0:00:52.4]} 21... Kd7 {[%clk 0:02:02.2]} 22. Ne5+ {[%clk
0:00:24.7]} 22... Kd6 {[%clk 0:02:02.6]} 23. Nb5+ {[%clk 0:00:25.6]} 23... Kxe5
{[%clk 0:01:03.9]} 24. Qe4+ {[%clk 0:00:25.9]} 24... Kf6 {[%clk 0:01:04.4]} 25.
Qxf4+ {[%clk 0:00:26.5]} 25... Ke6 {[%clk 0:01:00.2]} 26. Bh3+ {[%clk
0:00:18.9]} 26... Kd5 {[%clk 0:01:00.7]} 27. Bg2+ {[%clk 0:00:19.6]} 27... Ke6
{[%clk 0:01:01.3]} 28. Bh3+ {[%clk 0:00:13.7]} 28... Kd5 {[%clk 0:01:01.4]} 29.
Bg2+ {[%clk 0:00:04]} 29... Ke6 {[%clk 0:01:01.7]} 1/2-1/2

[Event "Early-Titled-Tuesday-Blitz-May-07-2024"]
[Site "Chess.com"]
[Date "2024.05.07"]
[Round "5"]
[White "yaguigor"]
[Black "Airquake"]
[Result "0-1"]
[WhiteElo "2568"]
[BlackElo "2820"]
[TimeControl "180+1"]
[EndTime "8:58:10 PDT"]
[Termination "Airquake won by resignation"]

1. e4 {[%clk 0:02:53.2]} 1... c5 {[%clk 0:03:00.1]} 2. Nf3 {[%clk 0:02:52.7]}
2... d6 {[%clk 0:03:00.5]} 3. d4 {[%clk 0:02:53.3]} 3... cxd4 {[%clk 0:03:01.4]}
4. Nxd4 {[%clk 0:02:54]} 4... Nf6 {[%clk 0:03:01.5]} 5. Nc3 {[%clk 0:02:54.7]}
5... a6 {[%clk 0:03:01.8]} 6. f3 {[%clk 0:02:55]} 6... e6 {[%clk 0:02:58.1]} 7.
Be3 {[%clk 0:02:54.3]} 7... Qc7 {[%clk 0:02:57.6]} 8. Qd2 {[%clk 0:02:54.1]}
8... b5 {[%clk 0:02:54.4]} 9. g4 {[%clk 0:02:51.8]} 9... Bb7 {[%clk 0:02:49.4]}
10. O-O-O {[%clk 0:02:47.1]} 10... Nc6 {[%clk 0:02:48.8]} 11. g5 {[%clk
0:02:44.3]} 11... Nd7 {[%clk 0:02:46.3]} 12. Nxc6 {[%clk 0:02:44.7]} 12... Bxc6
{[%clk 0:02:40.2]} 13. Ne2 {[%clk 0:02:44.5]} 13... Be7 {[%clk 0:02:31.8]} 14.
Nd4 {[%clk 0:02:44.2]} 14... Bb7 {[%clk 0:02:32.1]} 15. h4 {[%clk 0:02:42.9]}
15... Ne5 {[%clk 0:02:28.1]} 16. h5 {[%clk 0:02:34.3]} 16... Nc4 {[%clk
0:02:12.8]} 17. Bxc4 {[%clk 0:02:32.9]} 17... Qxc4 {[%clk 0:02:13.7]} 18. Kb1
{[%clk 0:02:27.7]} 18... g6 {[%clk 0:01:49.9]} 19. hxg6 {[%clk 0:02:19.8]} 19...
fxg6 {[%clk 0:01:50.8]} 20. b3 {[%clk 0:02:19.3]} 20... Qc8 {[%clk 0:01:50.6]}
21. Rh4 {[%clk 0:02:15.1]} 21... h5 {[%clk 0:01:20]} 22. Qd3 {[%clk 0:02:13.9]}
22... e5 {[%clk 0:01:08.9]} 23. Ne2 {[%clk 0:02:11.2]} 23... b4 {[%clk
0:00:59.4]} 24. f4 {[%clk 0:02:11.2]} 24... a5 {[%clk 0:00:51.7]} 25. c4 {[%clk
0:01:29]} 25... O-O {[%clk 0:00:37.3]} 26. Rdh1 {[%clk 0:01:19.8]} 26... Qe6
{[%clk 0:00:21.6]} 27. f5 {[%clk 0:01:07.4]} 27... gxf5 {[%clk 0:00:21.7]} 28.
Rxh5 {[%clk 0:01:07.7]} 28... Bxe4 {[%clk 0:00:21.1]} 29. Rh8+ {[%clk
0:01:00.2]} 29... Kf7 {[%clk 0:00:21.1]} 30. R1h7+ {[%clk 0:01:00.9]} 30... Ke8
{[%clk 0:00:21.4]} 31. Rxf8+ {[%clk 0:01:01.6]} 31... Bxf8 {[%clk 0:00:21.5]}
0-1